bitfinex-derivatives/quotes_SOLF0:USTF0_20241217
["timestamp","ask_amount","ask_price","bid_price","bid_amount"]
[1734418889872,2.3234,215.21,215.17,9.67503635]
[1734418891575,2.3233,215.22,215.18,2.3236]
[1734418891776,2.3233,215.22,215.19,2.08]
[1734418893065,2.3233,215.22,215.19,9.43123635]
[1734418895377,7.35123635,215.24,215.19,2.08]
[1734418895573,7.35123635,215.22,215.19,2.08]
[1734418896477,2.3234,215.21,215.19,2.08]
[1734418898071,2.3233,215.22,215.19,2.08]
[1734418898270,2.3233,215.22,215.19,9.43123635]
[1734418898669,7.35123635,215.2,215.15,7.74304043]
[1734418899272,7.35123635,215.22,215.15,7.74304043]
[1734418899682,7.35123635,215.22,215.16,7.35123635]
[1734418900291,7.35123635,215.22,215.17,2.08]
[1734418900494,2.3237,215.18,215.17,2.08]
[1734418924418,1.5196,215.24,215.17,2.08]
[1734418924712,7.35123635,215.23,215.18,7.35123635]
[1734418925512,2.3232,215.22,215.18,9.67483635]
[1734418925710,7.35123635,215.23,215.18,7.35123635]
[1734418927414,2.3233,215.21,215.18,7.35123635]
[1734418929314,2.3233,215.21,215.17,4.4038]
[1734418939219,2.3233,215.21,215.18,7.35123635]
[1734418942714,2.3233,215.21,215.17,2.08]
[1734418943616,2.3235,215.2,215.17,2.08]
[1734418944023,7.35123635,215.21,215.15,5.56871861]
[1734418944213,7.35123635,215.21,215.16,2.08]
[1734418944414,2.3242,215.13,215.04,6.4846843]
[1734418944615,7.35123635,215.08,215.03,2.08]
[1734418945016,7.35123635,215.08,215.03,2.3252]
[1734418945326,7.35123635,215.08,215.03,4.4052]
[1734418945616,7.35123635,215.08,215.06,5.68491557]
[1734418946617,7.35123635,215.13,215.07,7.35123635]
[1734418946822,7.35123635,215.13,215.07,9.43123635]
[1734418947224,9.67543635,215.13,215.07,11.75613635]
[1734418950726,2.3242,215.13,215.07,11.75613635]
[1734418951920,258.3848766,215.37,215.12,7.35123635]
[1734418952223,8.00745635,215.29,215.23,7.35123635]
[1734418952424,8.00745635,215.29,215.23,9.43123635]
[1734418952623,2.3229,215.25,215.23,9.43123635]
[1734418953222,2.3229,215.25,215.23,2.08]
[1734418953628,7.35123635,215.27,215.23,2.08]
[1734418953823,2.323,215.24,215.23,2.08]
[1734418962840,2.3233,215.22,215.21,2.08]
[1734418970551,311.5448766,215.46,215.21,9.43123635]
[1734418970751,8.09722635,215.35,215.29,7.35123635]
[1734418970951,8.09722635,215.35,215.29,9.43123635]
[1734418971150,7.35123635,215.33,215.26,2.08]
[1734418971352,7.35123635,215.33,215.26,7.35123635]
[1734418971654,7.35123635,215.33,215.25,2.08]
[1734418971655,7.35123635,215.31,215.25,2.08]
[1734418971963,7.35123635,215.31,215.25,9.43123635]
[1734418972652,2.3228,215.27,215.25,9.43123635]
[1734418976252,2.3225,215.29,215.25,9.43123635]
[1734418976653,2.3225,215.29,215.27,7.35123635]
[1734418977555,2.3226,215.28,215.27,7.35123635]
[1734418978352,1.5522,215.34,215.27,7.35123635]
[1734418978549,2.3225,215.3,215.27,7.35123635]
[1734418980457,7.35123635,215.33,215.27,7.35123635]
[1734418980458,2.3225,215.29,215.27,7.35123635]
[1734418980757,2.3225,215.29,215.25,2.08]
[1734418980954,7.35123635,215.33,215.25,2.08]
[1734418981161,7.35123635,215.33,215.25,9.43123635]
[1734418981658,7.35123635,215.33,215.25,2.08]
[1734418981854,2.3227,215.28,215.26,7.35123635]
[1734418984360,2.3227,215.28,215.25,2.08]
[1734418984560,2.3227,215.28,215.25,9.43123635]
[1734418985061,2.3227,215.28,215.25,2.08]
[1734418985362,2.3227,215.28,215.26,7.35123635]
[1734418986371,2.3228,215.27,215.25,9.43123635]
[1734418987870,2.3228,215.27,215.25,15.04254191]
[1734418990365,2.3226,215.28,215.25,15.04254191]
[1734418994970,2.3226,215.28,215.25,9.43123635]
[1734418995264,1.5522,215.34,215.25,9.43123635]
[1734418995465,7.35123635,215.36,215.29,7.35123635]
[1734418995665,7.35123635,215.36,215.3,2.08]
[1734418995868,2.3219,215.35,215.3,2.08]
[1734418996162,7.35123635,215.36,215.3,2.08]
[1734418996761,2.3222,215.32,215.3,2.08]
[1734418998071,2.3218,215.36,215.3,11.75363635]
[1734418998367,7.35123635,215.37,215.3,11.75363635]
[1734418998665,2.322,215.34,215.3,9.43123635]
[1734419002365,2.3219,215.35,215.3,11.75353635]
[1734419005963,7.35123635,215.37,215.3,9.43123635]
[1734419006168,2.3218,215.36,215.32,7.35123635]
[1734419007565,2.3218,215.36,215.32,9.67333635]
[1734419007867,2.3218,215.36,215.32,2.3221]
[1734419008280,7.35123635,215.38,215.3,4.4024]
[1734419008473,7.35123635,215.38,215.3,11.75363635]
[1734419008866,2.3219,215.35,215.3,11.75363635]
[1734419010462,2.3219,215.35,215.31,2.3222]
[1734419010662,2.3219,215.35,215.32,7.35123635]
[1734419010863,2.3217,215.36,215.32,7.35123635]
[1734419016074,2.3217,215.36,215.32,9.67343635]
[1734419018076,2.3217,215.36,215.34,7.35123635]
[1734419018283,2.3216,215.38,215.34,7.35123635]
[1734419018477,2.3216,215.38,215.34,9.43123635]
[1734419019881,2.3216,215.38,215.34,11.75313635]
[1734419021985,2.3216,215.38,215.34,4.4019]
[1734419024183,2.3221,215.34,215.29,2.3224]
[1734419024388,2.3221,215.34,215.3,2.06]
[1734419025683,2.3221,215.34,215.3,4.3824]
[1734419025889,2.3221,215.34,215.31,7.35123635]
[1734419026381,2.3218,215.36,215.31,7.35123635]
[1734419026590,12.39219103,215.42,215.33,7.35123635]
[1734419026783,7.35123635,215.39,215.34,2.08]
[1734419026989,5.58160339,215.42,215.34,2.08]
[1734419027189,7.35123635,215.39,215.34,2.08]
[1734419027486,2.3216,215.38,215.34,2.08]
[1734419028084,7.35123635,215.39,215.35,2.3218]
[1734419028888,2.3214,215.4,215.35,2.3218]
[1734419029079,2.3214,215.39,215.35,2.3218]
[1734419029683,7.35123635,215.41,215.35,7.35123635]
[1734419029895,2.3213,215.4,215.35,7.35123635]
[1734419030084,2.06,215.48,215.37,7.35123635]
[1734419030286,2.3211,215.42,215.38,2.06]
[1734419030689,4.7705,215.55,215.39,7.35123635]
[1734419030890,46.18148142,215.45,215.41,7.35123635]
[1734419031090,46.18148142,215.45,215.42,2.06]
[1734419031992,2.3209,215.44,215.42,2.06]
[1734419035191,2.3206,215.47,215.43,7.35123635]
[1734419036085,2.3206,215.47,215.45,7.35123635]
[1734419036291,2.3206,215.47,215.46,2.06]
[1734419037490,7.35123635,215.53,215.46,2.06]
[1734419037691,7.35123635,215.53,215.47,7.35123635]
[1734419038396,2.3205,215.48,215.47,7.35123635]
[1734419040395,2.3206,215.47,215.46,2.06]
[1734419050601,2.3205,215.48,215.46,2.06]
[1734419051702,2.3205,215.48,215.47,7.35123635]
[1734419053108,2.3205,215.48,215.47,2.06]
[1734419054015,2.3205,215.48,215.43,5.46400627]
[1734419054209,2.3205,215.48,215.46,7.35123635]
[1734419054408,2.3203,215.5,215.46,7.35123635]
[1734419054713,2.3203,215.5,215.44,2.06]
[1734419054714,7.35123635,215.54,215.48,7.35123635]
[1734419054909,10.60853635,215.55,215.48,9.41123635]
[1734419055109,2.3202,215.51,215.48,9.41123635]
[1734419055408,7.35123635,215.54,215.48,2.06]
[1734419056413,3.25314,215.49,215.48,2.06]
[1734419057848,0.93284,215.49,215.48,2.06]
[1734419059649,2.3202,215.5,215.48,2.06]
[1734419059847,2.3202,215.5,215.49,7.35123635]
[1734419066821,2.3201,215.52,215.49,7.35123635]
[1734419067916,2.3201,215.52,215.48,2.06]
[1734419067917,3.2573,215.55,215.51,7.35123635]
[1734419068118,1.11948,215.6,215.53,7.35123635]
[1734419068327,0.72566619,215.59,215.54,2.06]
[1734419068522,2.3194,215.59,215.54,2.06]
[1734419068823,1.11948,215.6,215.55,7.35123635]
[1734419069327,2.3195,215.57,215.55,7.35123635]
[1734419070618,1.11948,215.6,215.55,7.35123635]
[1734419070824,2.3196,215.56,215.55,7.35123635]
[1734419075927,1.11948,215.6,215.55,7.35123635]
[1734419076728,2.3195,215.58,215.55,7.35123635]
[1734419077232,1.11948,215.6,215.57,7.35123635]
[1734419077456,1.6314,215.79,215.58,2.06]
[1734419077662,1.6314,215.79,215.68,7.35123635]
[1734419077663,7.35123635,215.75,215.68,7.35123635]
[1734419077863,7.35123635,215.75,215.69,2.06]
[1734419077864,0.72525807,215.74,215.69,2.06]
[1734419078159,2.3181,215.7,215.69,2.06]
[1734419078362,7.35123635,215.74,215.69,2.06]
[1734419078548,0.72513569,215.73,215.69,2.06]
[1734419078854,1.6314,215.79,215.69,2.06]
[1734419078855,7.13460661,215.78,215.7,7.35123635]
[1734419079054,7.35123635,215.76,215.7,7.35123635]
[1734419079259,0.72510272,215.75,215.7,7.35123635]
[1734419079556,7.35123635,215.74,215.7,7.35123635]
[1734419079956,0.72513924,215.73,215.7,7.35123635]
[1734419080460,2.318,215.71,215.7,7.35123635]
[1734419080657,7.35123635,215.74,215.69,2.06]
[1734419081463,7.35123635,215.7,215.69,2.06]
[1734419082453,9.66933635,215.7,215.69,2.06]
[1734419083141,7.35123635,215.7,215.64,7.35123635]
[1734419083344,2.3186,215.66,215.65,2.06]
[1734419084251,13.95,215.89,215.64,7.35123635]
[1734419084450,5.44776395,215.82,215.76,7.35123635]
[1734419084637,0.72501954,215.81,215.77,2.06]
[1734419084941,2.3173,215.77,215.76,7.35123635]
[1734419085235,7.35123635,215.78,215.72,2.06]
[1734419085533,3.1562,215.86,215.77,7.35123635]
[1734419085735,7.35123635,215.84,215.78,2.06]
[1734419085935,0.72493355,215.83,215.78,2.06]
[1734419086134,2.3172,215.79,215.78,2.06]
[1734419088232,2.317,215.81,215.78,9.41123635]
[1734419088437,2.317,215.81,215.8,7.35123635]
[1734419089440,2.3168,215.82,215.8,7.35123635]
[1734419090636,4.6615,215.93,215.8,7.35123635]
[1734419090841,7.35123635,215.89,215.82,7.35123635]
[1734419091041,7.35123635,215.89,215.83,2.06]
[1734419091238,4.6615,215.93,215.83,2.06]
[1734419091442,7.35123635,215.89,215.83,2.06]
[1734419092542,2.3166,215.84,215.83,2.06]
[1734419093440,2.3167,215.83,215.82,7.35123635]
[1734419093746,2.3167,215.83,215.82,9.41123635]
[1734419094643,3.1283,215.93,215.82,9.41123635]
[1734419094841,3.1283,215.93,215.89,7.35123635]
[1734419095038,3.1283,215.93,215.9,2.06]
[1734419095243,1.5406,215.99,215.9,2.06]
[1734419095244,2.3158,215.91,215.9,2.06]
[1734419098340,3.1106,216.06,215.9,2.06]
[1734419098648,8.92873635,216.0,215.95,7.35123635]
[1734419098848,8.92873635,216.0,215.96,2.06]
[1734419099049,2.3152,215.97,215.96,2.06]
[1734419100143,8.78222518,216.06,215.96,2.06]
[1734419100347,7.35123635,216.03,215.97,7.35123635]
[1734419101546,1.5917,216.06,216.0,7.35123635]
[1734419101844,1.5917,216.06,216.01,2.06]
[1734419102349,2.3147,216.02,216.01,2.06]
[1734419104550,7.35123635,216.04,215.97,7.35123635]
[1734419104750,2.3149,216.0,215.98,2.06]
[1734419105848,2.3149,216.0,215.99,7.35123635]
[1734419106045,7.35123635,216.04,215.98,2.06]
[1734419106046,2.315,215.99,215.98,2.06]
[1734419107949,2.3149,216.0,215.98,2.06]
[1734419108551,2.315,215.99,215.98,2.06]
[1734419108751,7.35123635,216.04,215.98,2.06]
[1734419109147,7.35123635,216.02,215.93,5.5035615]
[1734419109352,8.24031676,216.1,215.93,5.5035615]
[1734419109353,7.35123635,216.0,215.94,2.06]
[1734419109548,7.35123635,216.0,215.95,2.06]
[1734419110554,2.3154,215.96,215.95,2.06]
[1734419113156,2.315,215.99,215.95,2.06]
[1734419113449,7.35123635,216.02,215.96,2.16]
[1734419113848,2.3155,215.94,215.88,1.5007]
[1734419114057,2.3155,215.94,215.93,7.35123635]
[1734419114253,2.3155,215.94,215.93,9.51123635]
[1734419115154,2.3158,215.92,215.88,1.5007]
[1734419115359,7.35123635,216.0,215.91,7.35123635]
[1734419115557,1.5278,216.09,215.92,2.16]
[1734419115558,7.35123635,215.98,215.92,2.16]
[1734419115758,2.3156,215.93,215.92,2.16]
[1734419118961,2.3156,215.93,215.91,7.35123635]
[1734419118962,8.94623635,215.99,215.87,5.46459383]
[1734419119161,2.3161,215.89,215.88,2.16]
[1734419119363,2.3161,215.89,215.88,9.51123635]
[1734419120064,2.3161,215.89,215.87,5.46459383]
[1734419120264,7.35123635,215.97,215.88,9.51123635]
[1734419120459,1.5524,215.96,215.88,7.35123635]
[1734419120660,1.5524,215.96,215.9,7.35123635]
[1734419120860,1.5524,215.96,215.91,2.16]
[1734419121065,8.90363635,215.96,215.91,2.16]
[1734419121361,8.90363635,215.96,215.82,3.1769]
[1734419121362,7.35123635,215.94,215.88,2.16]
[1734419121667,7.35123635,215.94,215.87,2.16]
[1734419121858,2.3162,215.88,215.87,2.16]
[1734419122972,1.5813,215.95,215.87,2.16]
[1734419123174,1.5813,215.95,215.89,7.35123635]
[1734419123468,7.35123635,215.94,215.87,9.51123635]
[1734419123668,2.3161,215.89,215.87,9.51123635]
[1734419124861,2.3162,215.88,215.87,9.51123635]
[1734419126068,2.3161,215.89,215.87,9.51123635]
[1734419128571,2.3157,215.92,215.87,9.51123635]
[1734419128782,7.35123635,215.94,215.87,9.51123635]
[1734419129475,2.3162,215.88,215.87,7.35123635]
[1734419129676,2.3162,215.88,215.87,9.51123635]
[1734419129878,2.3162,215.88,215.87,2.16]
[1734419132380,2.3162,215.88,215.87,9.51123635]
[1734419132774,1.595,215.99,215.87,9.51123635]
[1734419132977,7.35123635,215.97,215.9,7.35123635]
[1734419133174,13.04789938,215.97,215.9,7.35123635]
[1734419133483,7.35123635,215.96,215.9,7.35123635]
[1734419133881,0.72429884,215.98,215.92,7.35123635]
[1734419134076,0.72429884,215.98,215.93,2.16]
[1734419134290,2.3152,215.97,215.96,7.35123635]
[1734419134486,0.72429884,215.98,215.96,7.35123635]
[1734419135988,0.72429884,215.98,215.94,7.35123635]
[1734419136183,3.03939884,215.98,215.94,7.35123635]
[1734419136884,0.72429884,215.98,215.96,7.35123635]
[1734419138080,0.72429884,215.98,215.94,7.35123635]
[1734419139183,3.03939884,215.98,215.94,7.35123635]
[1734419140192,0.72429884,215.98,215.97,7.35123635]
[1734419141277,1.5517,216.09,215.97,7.35123635]
[1734419141486,2.3145,216.04,216.0,7.35123635]
[1734419141788,2.3145,216.04,216.01,2.16]
[1734419142179,7.35123635,216.08,216.01,2.16]
[1734419143989,2.3145,216.04,216.01,2.16]
[1734419144491,2.3142,216.07,216.02,7.35123635]
[1734419144686,8.01353635,216.1,216.02,7.35123635]
[1734419144887,7.35123635,216.08,216.02,7.35123635]
[1734419146081,7.35123635,216.08,216.01,2.16]
[1734419146785,0.6623,216.1,216.05,7.35123635]
[1734419147094,0.6623,216.1,216.05,9.49123635]
[1734419147289,0.71816973,216.09,216.05,9.49123635]
[1734419147486,0.6623,216.1,216.05,9.49123635]
[1734419149287,0.6623,216.1,216.05,2.14]
[1734419149691,7.35123635,216.09,216.05,2.14]
[1734419149985,7.35123635,216.09,216.06,2.14]
[1734419150190,0.6623,216.1,216.06,2.14]
[1734419150591,2.3142,216.07,216.06,2.14]
[1734419152688,2.314,216.09,216.06,2.14]
[1734419154088,2.314,216.08,216.06,2.14]
[1734419155590,2.3141,216.07,216.06,2.14]
[1734419156393,2.3143,216.06,216.0,2.3148]
[1734419156588,7.35123635,216.03,215.94,4.6232]
[1734419156784,7.35123635,216.03,215.95,2.14]
[1734419156989,2.3148,216.01,215.96,9.49123635]
[1734419157184,7.35123635,216.03,215.96,9.49123635]
[1734419157388,7.35123635,216.05,215.98,7.35123635]
[1734419158391,2.3146,216.03,215.98,9.66633635]
[1734419158591,0.6623,216.1,216.0,7.35123635]
[1734419158793,0.6623,216.1,216.01,2.14]
[1734419158794,0.71816034,216.09,216.01,2.14]
[1734419158993,7.35123635,216.07,216.01,2.14]
[1734419159290,2.3145,216.04,216.01,2.14]
[1734419160700,7.35123635,216.07,216.01,2.14]
[1734419161193,7.35123635,216.07,215.98,7.35123635]
[1734419161394,2.3146,216.03,215.99,2.14]
[1734419162398,0.6623,216.1,215.99,2.14]
[1734419162399,0.6623,216.1,216.02,2.3146]
[1734419162594,8.01353635,216.1,216.04,7.35123635]
[1734419162794,8.01353635,216.1,216.05,2.14]
[1734419163294,7.35123635,216.1,216.05,2.14]
[1734419164395,2.3141,216.07,216.05,2.14]
[1734419164997,5.4737427,216.15,216.05,2.14]
[1734419165201,7.35123635,216.12,216.05,2.14]
[1734419165699,7.35123635,216.1,216.05,2.14]
[1734419166492,4.7587,216.2,216.06,7.35123635]
[1734419166698,0.71795644,216.19,216.1,7.35123635]
[1734419166898,7.35123635,216.18,216.11,2.14]
[1734419168504,7.35123635,216.16,216.11,2.14]
[1734419169299,1.5961,216.2,216.11,2.14]
[1734419169491,7.35123635,216.16,216.11,2.14]
[1734419170595,0.95991,216.21,216.11,2.14]
[1734419170596,0.95991,216.21,216.14,7.35123635]
[1734419170898,2.3123,216.24,216.2,7.35123635]
[1734419171095,2.3123,216.24,216.21,2.14]
[1734419172299,2.3124,216.24,216.22,2.14]
[1734419172493,7.35123635,216.26,216.23,2.14]
[1734419173295,7.35123635,216.26,216.13,1.612]
[1734419173501,7.35123635,216.2,216.14,2.14]
[1734419174099,11.30754999,216.22,216.14,2.14]
[1734419174805,2.3132,216.16,216.14,2.14]
[1734419175200,3.1824,216.21,216.13,2.26]
[1734419175701,2.3134,216.14,216.13,2.26]
[1734419178999,2.3138,216.1,216.07,2.26]
[1734419179199,11.30754999,216.19,216.07,2.26]
[1734419179598,2.3132,216.16,216.07,2.26]
[1734419179805,11.30754999,216.19,216.07,2.26]
[1734419180400,16.86169579,216.19,216.07,2.26]
[1734419180696,2.3135,216.13,216.07,2.26]
[1734419181397,16.86169579,216.19,216.07,2.26]
[1734419182605,2.314,216.08,216.02,2.3146]
[1734419182804,11.30754999,216.16,216.03,2.26]
[1734419183006,2.26,216.14,216.03,2.26]
[1734419183202,2.3143,216.06,216.03,2.26]
[1734419184705,1.5072,216.13,216.03,2.26]
[1734419184908,2.3144,216.05,216.03,2.26]
[1734419187710,1.5072,216.13,216.03,2.26]
[1734419187902,2.3138,216.1,216.05,2.3143]
[1734419188107,1.5072,216.13,216.04,11.30754999]
[1734419188404,2.3135,216.13,216.08,2.3139]
[1734419188609,2.3135,216.13,216.09,2.26]
[1734419189004,11.30754999,216.18,216.09,2.26]
[1734419190809,12.85364999,216.21,216.09,2.26]
[1734419191408,45.96387089,217.69,216.09,2.26]
[1734419191409,13.91,216.36,216.16,11.30754999]
[1734419191609,11.30754999,216.31,216.17,2.26]
[1734419192014,0.71755829,216.3,216.17,4.5731]
[1734419192514,2.3122,216.26,216.18,2.3129]
[1734419194310,2.312,216.28,216.21,2.3126]
[1734419194515,2.312,216.28,216.22,2.26]
[1734419195317,2.312,216.27,216.22,2.26]
[1734419196215,2.3121,216.26,216.22,2.26]
[1734419197811,2.3122,216.25,216.22,2.26]
[1734419199110,11.30754999,216.31,216.22,2.26]
[1734419199312,2.3124,216.23,216.22,2.26]
[1734419199712,11.30754999,216.31,216.22,2.26]
[1734419200113,2.3124,216.23,216.22,2.26]
[1734419203813,20.16467592,216.34,216.22,2.26]
[1734419203814,20.16467592,216.34,216.22,13.56754999]
[1734419204014,0.71734639,216.33,216.22,13.56754999]
[1734419205220,0.71734266,216.32,216.23,2.26]
[1734419205932,0.71734266,216.32,216.25,11.30754999]
[1734419206321,0.71734266,216.32,216.28,11.30754999]
[1734419206523,0.71734266,216.32,216.29,2.26]
[1734419207832,2.3114,216.33,216.29,2.26]
[1734419208922,2.3117,216.3,216.25,11.30754999]
[1734419209229,0.22389,216.34,216.26,2.26]
[1734419209825,2.53519,216.34,216.26,2.26]
[1734419210021,0.22389,216.34,216.26,2.26]
[1734419211022,2.3116,216.32,216.26,2.26]
[1734419211425,2.3116,216.32,216.27,13.51403498]
[1734419211626,2.3116,216.32,216.28,5.19773971]
[1734419211821,2.3116,216.32,216.29,5.19773971]
[1734419212025,2.3116,216.32,216.26,2.26]
[1734419212226,2.3116,216.32,216.27,13.51395758]
[1734419212429,2.3116,216.32,216.28,5.19767599]
[1734419212729,0.22389,216.34,216.29,5.19767599]
[1734419212920,0.22389,216.34,216.3,5.19601072]
[1734419213120,0.22389,216.34,216.31,7.45601072]
[1734419213426,0.22389,216.34,216.31,2.26]
[1734419213728,0.22389,216.34,216.32,5.19286749]
[1734419214028,0.22389,216.34,216.33,5.19218087]
[1734419215731,2.26,216.54,216.33,13.49186775]
[1734419216033,13.91,216.59,216.31,13.56754999]
[1734419216034,7.21693038,216.49,216.42,7.21693038]
[1734419216225,7.21693038,216.49,216.43,2.26]
[1734419217524,2.3102,216.45,216.43,2.26]
[1734419221229,3.1271,216.52,216.43,13.53647841]
[1734419221732,1.5719,216.52,216.44,5.16307413]
[1734419222022,1.5719,216.52,216.43,13.53647841]
[1734419222224,2.3095,216.51,216.44,7.46835699]
[1734419222421,2.3095,216.51,216.45,5.15815699]
[1734419222623,1.5719,216.52,216.43,13.53647841]
[1734419222819,1.6409,216.57,216.48,11.27647841]
[1734419223025,1.6409,216.57,216.49,2.26]
[1734419223828,2.3095,216.51,216.49,2.26]
[1734419224527,1.6409,216.57,216.49,2.26]
[1734419224528,2.3095,216.5,216.49,2.26]
[1734419225824,1.6409,216.57,216.42,11.27647841]
[1734419226025,11.27647841,216.48,216.38,2.26]
[1734419226232,3.2315,216.47,216.38,2.26]
[1734419226432,4.7798,216.47,216.38,2.26]
[1734419226725,4.7798,216.47,216.38,7.88762495]
[1734419226726,2.3105,216.41,216.38,7.88762495]
[1734419226927,11.27647841,216.45,216.37,2.26]
[1734419228936,2.3108,216.38,216.37,2.26]
[1734419229331,2.3106,216.4,216.37,2.26]
[1734419229833,4.7798,216.47,216.37,2.26]
[1734419230033,2.3104,216.42,216.38,5.1548755]
[1734419230233,2.3104,216.42,216.37,13.53647841]
[1734419230636,2.3103,216.43,216.38,5.15710348]
[1734419230835,2.3103,216.43,216.39,5.15710348]
[1734419231038,4.7798,216.47,216.4,5.15710348]
[1734419231236,4.7798,216.47,216.37,13.53647841]
[1734419231431,4.7798,216.47,216.41,11.27647841]
[1734419231633,4.7798,216.47,216.42,2.26]
[1734419231634,3.2315,216.47,216.42,2.26]
[1734419232236,3.2315,216.47,216.43,5.15741682]
[1734419232439,2.31,216.46,216.43,5.15741682]
[1734419232733,0.25789,216.52,216.44,16.43389523]
[1734419232930,0.25789,216.52,216.47,11.27647841]
[1734419233132,0.25789,216.52,216.48,7.41741682]
[1734419233436,0.25789,216.52,216.49,5.15741682]
[1734419233634,0.25789,216.52,216.48,2.26]
[1734419233835,0.25789,216.52,216.49,5.15498608]
[1734419234031,0.25789,216.52,216.48,2.26]
[1734419234238,2.3094,216.51,216.48,2.26]
[1734419234539,2.3094,216.51,216.49,5.15574829]
[1734419234737,0.25789,216.52,216.48,2.26]
[1734419234939,0.25789,216.52,216.49,5.15543086]
[1734419235142,0.25789,216.52,216.48,2.26]
[1734419235332,0.25789,216.52,216.49,5.15636624]
[1734419235531,2.56719,216.52,216.5,5.15636624]
[1734419235832,2.56719,216.52,216.48,2.26]
[1734419236038,2.56719,216.52,216.49,5.15607857]
[1734419236235,2.56719,216.52,216.5,5.15607857]
[1734419236535,2.56719,216.52,216.48,2.26]
[1734419236536,0.25789,216.52,216.48,2.26]
[1734419236841,0.25789,216.52,216.49,5.15471665]
[1734419237141,2.3094,216.51,216.5,5.15471665]
[1734419238359,2.3094,216.51,216.48,2.26]
[1734419238567,0.25789,216.52,216.49,5.15525231]
[1734419238863,0.25789,216.52,216.5,13.40040216]
[1734419239162,0.25789,216.52,216.51,13.40040216]
[1734419241063,0.25789,216.52,216.51,8.24514985]
[1734419241457,0.25789,216.52,216.51,13.39373064]
[1734419242067,2.56719,216.52,216.51,13.39373064]
[1734419243169,2.56719,216.52,216.51,5.15143486]
[1734419243777,2.3095,216.51,216.47,2.38]
[1734419244074,2.3095,216.51,216.48,13.40297379]
[1734419244272,2.3095,216.51,216.49,8.24798387]
[1734419244479,2.3095,216.51,216.47,2.38]
[1734419244666,2.56719,216.52,216.5,5.15776925]
[1734419244871,2.56719,216.52,216.47,2.38]
[1734419245072,2.56719,216.52,216.51,5.15746446]
[1734419245573,0.25789,216.52,216.51,13.40794238]
[1734419247859,0.25789,216.52,216.51,13.4113362]
[1734419249049,2.56719,216.52,216.51,13.4113362]
[1734419249254,2.56719,216.52,216.51,5.15820623]
[1734419249756,2.3096,216.49,216.48,2.38]
[1734419250051,2.3096,216.49,216.48,13.42830744]
[1734419250249,2.3096,216.49,216.48,5.16473363]
[1734419250953,2.3096,216.49,216.46,2.38]
[1734419251152,2.3096,216.49,216.48,5.16792219]
[1734419251652,2.3095,216.51,216.48,13.43723715]
[1734419251847,2.3095,216.51,216.49,13.43723715]
[1734419252049,2.3095,216.51,216.5,5.16792219]
[1734419252245,2.56729,216.52,216.5,5.16792219]
[1734419252450,2.56729,216.52,216.51,5.16792219]
[1734419253550,0.25789,216.52,216.51,5.16792219]
[1734419253755,0.25789,216.52,216.51,15.82181203]
[1734419254254,0.25789,216.52,216.51,24.09839333]
[1734419254455,0.25789,216.52,216.51,15.82450349]
[1734419254650,0.25789,216.52,216.51,2.38]
[1734419254957,0.25789,216.52,216.51,7.55492213]
[1734419255156,0.25789,216.52,216.51,15.83479754]
[1734419257750,11.27647841,216.62,216.51,15.83479754]
[1734419257951,2.3087,216.58,216.53,2.3092]
[1734419258152,11.27647841,216.65,216.54,13.45479754]
[1734419258347,3.108,216.67,216.55,13.45479754]
[1734419258549,3.108,216.67,216.56,15.83479754]
[1734419258754,2.308,216.64,216.57,8.28844143]
[1734419258957,0.71606948,216.66,216.58,8.28844143]
[1734419259250,1.43217842,216.66,216.59,13.46336356]
[1734419259450,0.71606948,216.66,216.6,5.17492213]
[1734419259654,11.27647841,216.63,216.54,5.63329097]
[1734419259856,0.71606948,216.66,216.55,8.24805244]
[1734419259857,11.27647841,216.6,216.55,8.24805244]
[1734419260062,2.3089,216.56,216.54,2.38]
[1734419260258,2.3089,216.56,216.55,13.40566443]